bitfinex/quotes_SOLUSD_20220306
["timestamp","ask_amount","ask_price","bid_price","bid_amount"]
[1646542300164,1.53872956,88.264,88.203,23.9296]
[1646542300571,1.53872956,88.262,88.203,23.9296]
[1646542300766,1.53872956,88.264,88.203,23.9296]
[1646542301167,116.03872956,88.264,88.203,23.9296]
[1646542301568,1.53872956,88.263,88.203,23.9296]
[1646542302168,1.53872956,88.264,88.203,23.9296]
[1646542302568,24.7297,88.265,88.203,23.9296]
[1646542302768,24.7297,88.265,88.204,2.83613526]
[1646542302968,0.70012462,88.266,88.204,29.61033645]
[1646542303168,0.70012462,88.266,88.205,41.71986872]
[1646542303369,0.70012462,88.266,88.205,69.78023894]
[1646542303569,0.70012462,88.266,88.206,41.71986872]
[1646542303770,0.70012462,88.266,88.206,44.55600398]
[1646542303972,0.70012462,88.266,88.207,8.50213526]
[1646542304170,0.70012462,88.266,88.21,17.0041]
[1646542304370,0.70012462,88.266,88.211,5.666]
[1646542304770,0.70012462,88.266,88.211,2.83613526]
[1646542304974,0.70012462,88.266,88.21,17.0041]
[1646542305171,23.142,88.28,88.212,2.83613526]
[1646542305372,24.68072956,88.28,88.212,2.83613526]
[1646542305573,24.68072956,88.28,88.22,17.0023]
[1646542305776,1.53872956,88.287,88.221,5.665]
[1646542305973,1.53872956,88.289,88.222,23.4034]
[1646542306173,1.53872956,88.288,88.223,5.665]
[1646542306374,1.53872956,88.29,88.223,5.665]
[1646542306579,44.73914868,88.291,88.224,53.07971158]
[1646542306775,43.20041912,88.291,88.225,5.665]
[1646542306974,1.53872956,88.291,88.225,5.665]
[1646542307174,23.9304,88.296,88.225,5.665]
[1646542307175,1.53872956,88.295,88.225,8.50113526]
[1646542307378,23.9304,88.296,88.226,2.83613526]
[1646542307574,23.9304,88.296,88.227,5.665]
[1646542307976,55.48179945,88.295,88.228,2.83613526]
[1646542308179,55.48179945,88.295,88.229,5.664]
[1646542308376,55.48179945,88.295,88.23,17.0005]
[1646542308576,55.48179945,88.295,88.231,5.664]
[1646542308777,114.5,88.294,88.231,8.50013526]
[1646542309180,55.48179945,88.295,88.232,2.83613526]
[1646542310079,0.70285482,88.279,88.232,2.83613526]
[1646542311587,0.70285482,88.279,88.24,16.9976]
[1646542311788,0.70285482,88.279,88.241,5.665]
[1646542311986,0.70285482,88.279,88.241,8.50113526]
[1646542312184,0.70285482,88.279,88.241,5.665]
[1646542312384,0.70285482,88.279,88.242,49.2658562]
[1646542312583,0.70285482,88.279,88.25,16.996]
[1646542312783,0.70285482,88.279,88.251,5.664]
[1646542312983,0.70285482,88.279,88.251,8.50013526]
[1646542313284,0.70285482,88.279,88.252,2.83613526]
[1646542313484,0.70285482,88.279,88.253,5.664]
[1646542313883,0.70285482,88.279,88.254,2.83613526]
[1646542314485,25.86533431,88.32,88.254,2.83613526]
[1646542314884,24.32660475,88.32,88.254,2.83613526]
[1646542315084,1.53872956,88.319,88.254,2.83613526]
[1646542315304,5.663,88.319,88.254,2.83613526]
[1646542315884,114.5,88.318,88.254,2.83613526]
[1646542316688,5.663,88.317,88.254,2.83613526]
[1646542316886,1.53872956,88.315,88.254,2.83613526]
[1646542317089,5.663,88.314,88.254,2.83613526]
[1646542317488,5.663,88.315,88.254,2.83613526]
[1646542317893,114.5,88.315,88.254,2.83613526]
[1646542318096,5.663,88.314,88.254,2.83613526]
[1646542318893,120.163,88.314,88.254,2.83613526]
[1646542319994,5.663,88.314,88.254,2.83613526]
[1646542320194,5.663,88.315,88.254,2.83613526]
[1646542320397,114.5,88.313,88.254,2.83613526]
[1646542320600,114.5,88.309,88.239,2.83613526]
[1646542320796,114.5,88.299,88.226,22.6854]
[1646542320997,68.67,88.292,88.219,26.77420119]
[1646542321196,114.5,88.289,88.21,25.22423496]
[1646542321396,68.67,88.29,88.226,59.22159678]
[1646542321397,123.89738924,88.287,88.226,59.22159678]
[1646542322498,129.56238924,88.287,88.226,59.22159678]
[1646542323116,120.165,88.287,88.226,59.22159678]
[1646542324515,114.5,88.287,88.226,59.22159678]
[1646542325516,131.5281,88.287,88.226,59.22159678]
[1646542326216,1.53872956,88.285,88.226,59.22159678]
[1646542326417,131.5281,88.287,88.226,59.22159678]
[1646542326818,5.665,88.286,88.226,59.22159678]
[1646542327417,5.665,88.286,88.211,22.6854]
[1646542327620,70.20872956,88.282,88.211,22.6854]
[1646542327819,70.20872956,88.276,88.192,26.23722622]
[1646542328018,68.67,88.262,88.143,56.86]
[1646542328221,114.5,88.259,88.171,11.83466196]
[1646542328419,0.6820851,88.257,88.173,59.99043847]
[1646542328619,5.667,88.256,88.173,59.99043847]
[1646542330332,5.667,88.256,88.174,26.23722622]
[1646542330536,5.667,88.258,88.174,51.46146118]
[1646542330834,5.667,88.258,88.175,66.40712871]
[1646542331034,23.5053,88.261,88.175,69.24326397]
[1646542331231,23.5053,88.261,88.176,66.40712871]
[1646542331431,23.5053,88.261,88.18,33.3698]
[1646542331831,5.667,88.285,88.182,114.5]
[1646542332033,22.8351,88.284,88.184,56.86]
[1646542332235,22.8351,88.284,88.19,56.6754]
[1646542332437,22.8351,88.284,88.19,73.0354]
[1646542332631,22.8351,88.284,88.191,25.22423496]
[1646542332832,22.8351,88.284,88.191,118.3346526]
[1646542333031,22.8351,88.284,88.192,41.18289375]
[1646542333231,22.8351,88.284,88.21,17.0027]
[1646542333431,22.8351,88.284,88.211,78.55553013]
[1646542333931,22.8351,88.284,88.211,81.39166539]
[1646542334936,22.8351,88.284,88.211,107.62889161]
[1646542335133,22.8351,88.284,88.22,17.0024]
[1646542339136,114.5,88.283,88.22,17.0024]
[1646542339539,115.20369472,88.283,88.22,17.0024]
[1646542339737,115.20369472,88.283,88.211,81.39166539]
[1646542339939,115.20369472,88.283,88.211,78.55553013]
[1646542340338,68.67,88.28,88.211,53.90743013]
[1646542340639,68.67,88.264,88.185,22.9596]
[1646542340840,114.5,88.259,88.185,22.9596]
[1646542341038,5.667,88.258,88.185,22.9596]
[1646542341238,120.167,88.259,88.185,22.9596]
[1646542341638,114.5,88.253,88.171,11.8365601]
[1646542341839,114.5,88.235,88.171,11.8365601]
[1646542342041,114.5,88.229,88.171,11.8365601]
[1646542342645,114.5,88.229,88.172,63.29460577]
[1646542345044,114.5,88.239,88.172,63.29460577]
[1646542347046,68.67,88.234,88.172,63.29460577]
[1646542347247,114.5,88.229,88.172,63.29460577]
[1646542348247,117.91878784,88.229,88.172,63.29460577]
[1646542349868,114.5,88.229,88.172,63.29460577]
[1646542350369,1.53872956,88.259,88.172,63.29460577]
[1646542350566,114.5,88.249,88.172,63.29460577]
[1646542350766,114.5,88.247,88.172,63.29460577]
[1646542350967,160.22048971,88.247,88.172,63.29460577]
[1646542351268,5.668,88.246,88.172,63.29460577]
[1646542351769,160.22048971,88.247,88.172,63.29460577]
[1646542352972,114.5,88.247,88.172,63.29460577]
[1646542353972,114.5,88.245,88.172,63.29460577]
[1646542355074,5.668,88.244,88.172,63.29460577]
[1646542356774,68.67,88.242,88.172,63.29460577]
[1646542356975,114.5,88.239,88.172,63.29460577]
[1646542357781,5.668,88.238,88.172,63.29460577]
[1646542358579,68.67,88.232,88.172,63.29460577]
[1646542358779,114.5,88.229,88.172,63.29460577]
[1646542358978,5.668,88.228,88.172,63.29460577]
[1646542359578,114.5,88.229,88.172,63.29460577]
[1646542360078,68.67,88.218,88.154,17.0415]
[1646542360280,68.67,88.212,88.154,17.0415]
[1646542360483,114.5,88.209,88.154,17.0415]
[1646542360679,121.5,88.209,88.153,17.0392]
[1646542360881,40.72031873,88.208,88.152,56.77730053]
[1646542361078,114.5,88.207,88.152,56.77730053]
[1646542361278,114.5,88.207,88.138,22.8319]
[1646542362278,114.5,88.199,88.138,22.8319]
[1646542363282,114.5,88.199,88.139,49.73899869]
[1646542365486,24.5843,88.207,88.139,49.73899869]
[1646542365690,5.67,88.228,88.14,28.40589289]
[1646542365888,59.62975901,88.23,88.14,54.71932815]
[1646542366187,59.62975901,88.23,88.141,25.57202815]
[1646542366388,59.62975901,88.23,88.142,5.668]
[1646542366688,114.5,88.229,88.142,8.50413526]
[1646542366887,114.5,88.229,88.143,2.83613526]
[1646542366888,5.668,88.228,88.143,2.83613526]
[1646542367187,114.5,88.229,88.144,5.668]
[1646542367390,5.668,88.228,88.143,2.83613526]
[1646542367588,5.668,88.228,88.15,17.0159]
[1646542367789,23.451,88.235,88.151,5.668]
[1646542367988,23.451,88.235,88.151,38.53302902]
[1646542368191,23.451,88.235,88.152,31.24002815]
[1646542368390,23.451,88.235,88.153,50.93167124]
[1646542368591,23.451,88.235,88.154,5.668]
[1646542368791,23.451,88.235,88.154,8.50413526]
[1646542369194,23.451,88.235,88.171,64.52584755]
[1646542369397,114.5,88.234,88.172,5.668]
[1646542370196,114.5,88.234,88.171,64.52584755]
[1646542370999,5.668,88.233,88.171,64.52584755]
[1646542372001,114.5,88.234,88.171,64.52584755]
[1646542372399,23.451,88.235,88.171,64.52584755]
[1646542372802,114.5,88.234,88.172,5.668]
[1646542373002,5.668,88.233,88.171,64.52584755]
[1646542373605,120.168,88.234,88.171,64.52584755]
[1646542374403,114.5,88.232,88.171,64.52584755]
[1646542374604,183.17,88.23,88.171,64.52584755]
[1646542375004,183.17,88.23,88.172,5.668]
[1646542376426,5.668,88.229,88.171,64.52584755]
[1646542376825,7.41253609,88.228,88.151,5.668]
[1646542377026,1.53872956,88.223,88.121,5.668]
[1646542377226,183.17,88.209,88.121,5.668]
[1646542377426,183.17,88.207,88.115,5.671]
[1646542377625,5.671,88.206,88.115,5.671]
[1646542377826,183.17,88.204,88.116,60.63124369]
[1646542378027,183.17,88.204,88.117,5.671]
[1646542378028,68.67,88.199,88.117,5.671]
[1646542378227,5.671,88.198,88.117,5.671]
[1646542378827,5.671,88.198,88.116,60.63124369]
[1646542381234,16.36,88.2,88.117,5.671]
[1646542381431,24.5277,88.205,88.117,5.671]
[1646542381432,24.5277,88.205,88.117,8.50713526]
[1646542381631,24.5277,88.205,88.12,17.0217]
[1646542381833,24.5277,88.205,88.121,5.671]
[1646542382033,24.5277,88.205,88.121,25.57202815]
[1646542382232,24.5277,88.205,88.122,28.40689289]
[1646542382448,5.671,88.223,88.122,31.24302815]
[1646542382633,5.67,88.228,88.13,16.36]
[1646542382833,5.67,88.236,88.131,5.67]
[1646542383033,5.67,88.236,88.14,17.0175]
[1646542383233,16.36,88.24,88.141,29.2953]
[1646542383434,114.5,88.239,88.141,29.2953]
[1646542383634,154.19294105,88.239,88.142,56.00347045]
[1646542383835,154.19294105,88.239,88.143,5.668]
[1646542384232,154.19294105,88.239,88.15,17.0147]
[1646542384433,68.67,88.23,88.151,5.668]
[1646542384633,120.168,88.229,88.15,17.0147]
[1646542386037,5.668,88.229,88.15,17.0147]
[1646542386234,5.668,88.236,88.15,17.0147]
[1646542387336,114.5,88.237,88.151,5.668]
[1646542387736,116.03872956,88.237,88.151,5.668]
[1646542388035,5.668,88.236,88.15,17.0147]
[1646542388236,114.5,88.235,88.15,17.0147]
[1646542388437,5.668,88.234,88.15,17.0147]
[1646542389240,114.5,88.236,88.151,5.668]
[1646542389638,116.03872956,88.236,88.151,5.668]
[1646542390238,1.53872956,88.236,88.151,5.668]
[1646542390639,114.5,88.233,88.151,5.668]
[1646542390840,114.5,88.229,88.151,5.668]
[1646542392240,120.168,88.229,88.151,5.668]
[1646542392641,5.668,88.229,88.16,17.0137]
[1646542392840,1.53872956,88.246,88.161,5.668]
[1646542393040,1.53872956,88.258,88.161,51.84229289]
[1646542393242,1.53872956,88.258,88.161,31.94253526]
[1646542393441,1.53872956,88.266,88.162,44.12079452]
[1646542393642,1.53872956,88.268,88.163,62.34365739]
[1646542393841,5.667,88.267,88.163,123.73492137]
[1646542394041,5.667,88.267,88.164,22.73589289]
[1646542394243,5.667,88.27,88.181,58.81967763]
[1646542394441,5.667,88.27,88.182,5.667]
[1646542395842,5.667,88.272,88.182,5.667]
[1646542396042,6.70572956,88.272,88.182,5.667]
[1646542396242,5.167,88.272,88.19,17.0075]
[1646542396448,51.03580803,88.275,88.191,5.666]
[1646542396449,5.666,88.273,88.191,5.666]
[1646542396644,114.5,88.273,88.191,5.666]
[1646542396847,5.666,88.272,88.184,5.666]
[1646542398245,5.666,88.272,88.2,17.0062]
[1646542398446,5.666,88.272,88.201,58.30377258]
[1646542399248,23.33,88.274,88.21,17.0042]
[1646542399450,0.52556605,88.269,88.211,5.666]
[1646542399648,0.52556605,88.269,88.21,2.83613526]
[1646542399848,0.52556605,88.269,88.211,20.1003342]
[1646542400148,0.52556605,88.269,88.212,2.83613526]
[1646542400349,0.52556605,88.269,88.213,5.666]
[1646542400549,0.52556605,88.269,88.212,5.666]
[1646542400748,0.52556605,88.269,88.211,14.4343342]
[1646542401152,0.52556605,88.269,88.22,17.0022]
[1646542401352,0.52556605,88.269,88.221,46.72485818]
[1646542403852,0.52556605,88.269,88.222,5.666]
[1646542404258,0.52556605,88.269,88.221,46.72485818]
[1646542404655,0.52666873,88.287,88.221,46.72485818]
[1646542404858,5.665,88.286,88.221,46.72485818]
[1646542406358,114.5,88.285,88.221,46.72485818]
[1646542407961,114.5,88.283,88.221,46.72485818]
[1646542408560,114.5,88.283,88.222,5.665]
[1646542408962,0.52666873,88.287,88.222,5.665]
[1646542409961,114.02808598,88.296,88.222,5.665]
[1646542412273,0.52808598,88.296,88.222,5.665]
[1646542412472,0.52808598,88.296,88.222,29.9421]
[1646542413070,0.52808598,88.296,88.222,24.2771]
[1646542414974,114.5,88.294,88.222,24.2771]
[1646542415474,120.165,88.293,88.222,24.2771]
[1646542415674,114.5,88.293,88.222,24.2771]
[1646542416590,114.5,88.294,88.222,24.2771]
[1646542416787,120.165,88.293,88.222,24.2771]
[1646542416991,114.5,88.293,88.222,24.2771]
[1646542417189,68.67,88.292,88.221,46.72485818]
[1646542417391,114.5,88.289,88.221,46.72485818]
[1646542417589,120.165,88.289,88.221,46.72485818]
[1646542418389,114.5,88.288,88.221,46.72485818]
[1646542418590,114.5,88.29,88.221,46.72485818]
[1646542418790,5.665,88.289,88.221,46.72485818]
[1646542418990,5.665,88.291,88.222,22.8501]
[1646542419795,1.53872956,88.289,88.222,22.8501]
[1646542419995,116.03872956,88.288,88.222,22.8501]
[1646542420391,1.53872956,88.288,88.222,22.8501]
[1646542420592,1.53872956,88.288,88.223,5.665]
[1646542421593,1.53872956,88.281,88.223,5.665]
[1646542422895,1.53872956,88.28,88.223,5.665]
[1646542423596,1.53872956,88.279,88.223,5.665]
[1646542424197,1.53872956,88.276,88.223,5.665]
[1646542424595,1.53872956,88.275,88.223,5.665]
[1646542424997,1.53872956,88.276,88.223,5.665]
[1646542425396,1.53872956,88.279,88.223,5.665]
[1646542425797,1.53872956,88.277,88.223,5.665]
[1646542425997,1.53872956,88.274,88.223,5.665]
[1646542426199,1.53872956,88.277,88.223,5.665]
[1646542426800,1.53872956,88.278,88.223,5.665]
[1646542426999,1.53872956,88.274,88.223,5.665]
[1646542427600,1.53872956,88.279,88.223,5.665]
[1646542427803,1.53872956,88.274,88.223,5.665]
[1646542428003,1.53872956,88.273,88.223,5.665]
[1646542428202,1.99848652,88.284,88.223,5.665]
[1646542428203,1.53872956,88.277,88.223,5.665]
[1646542428803,1.53872956,88.278,88.223,5.665]
[1646542429003,1.53872956,88.275,88.223,5.665]
[1646542430306,2.06539819,88.276,88.223,5.665]
[1646542431006,1.53872956,88.275,88.223,5.665]
[1646542431205,0.52666863,88.276,88.223,5.665]
[1646542431805,2.06539819,88.276,88.223,5.665]
[1646542432008,1.53872956,88.274,88.223,5.665]
[1646542432208,0.52666863,88.276,88.223,5.665]
[1646542432911,1.53872956,88.275,88.223,5.665]
[1646542433307,0.52666863,88.276,88.223,5.665]
[1646542433911,1.53872956,88.275,88.223,5.665]
[1646542434108,0.52666863,88.276,88.223,5.665]
[1646542435010,1.53872956,88.275,88.223,5.665]
[1646542435709,0.52666863,88.276,88.223,5.665]
[1646542435909,1.53872956,88.275,88.223,5.665]
[1646542436610,1.53872956,88.275,88.222,22.8501]
[1646542436812,0.52666863,88.276,88.223,5.665]
[1646542437011,2.06539819,88.276,88.222,22.8501]
[1646542437211,0.52666863,88.276,88.223,5.665]
[1646542437911,2.06539819,88.276,88.222,22.8501]
[1646542440318,1.53872956,88.275,88.222,22.8501]
[1646542440720,0.52666863,88.276,88.223,5.665]
[1646542442422,0.52666863,88.276,88.222,22.8501]
[1646542443444,0.52666863,88.276,88.223,52.30779452]
[1646542443643,0.52666863,88.276,88.224,114.5]
[1646542443841,0.52666863,88.276,88.226,114.5]
[1646542444037,0.52666863,88.276,88.24,16.36]
[1646542444242,1.53872956,88.309,88.251,15.0]
[1646542444438,1.53872956,88.313,88.252,5.663]
[1646542444641,1.53872956,88.313,88.252,21.47061358]
[1646542444838,1.53872956,88.328,88.253,48.34200163]
[1646542445037,1.53872956,88.332,88.255,0.46689552]
[1646542445238,1.53872956,88.332,88.257,50.57868175]
[1646542445437,1.53872956,88.335,88.26,16.36]
[1646542445638,22.7171,88.338,88.28,16.9902]
[1646542445840,24.25582956,88.338,88.281,55.4445834]
[1646542446041,1.53872956,88.337,88.281,55.4445834]
[1646542446840,30.61006708,88.338,88.281,55.4445834]
[1646542447041,22.7171,88.338,88.281,55.4445834]
[1646542447441,1.53872956,88.346,88.29,16.9885]
[1646542447641,22.5789,88.35,88.29,16.9885]
[1646542448643,22.5789,88.35,88.291,5.66]
[1646542449043,22.5789,88.35,88.29,16.9885]
[1646542449942,22.5789,88.35,88.291,5.661]
[1646542450965,22.5789,88.35,88.283,5.66]
[1646542451155,22.5789,88.35,88.282,23.4877]
[1646542451553,114.5,88.349,88.282,23.4877]
[1646542451755,22.5789,88.35,88.282,23.4877]
[1646542453958,68.67,88.348,88.281,17.2229]
[1646542454160,68.67,88.344,88.281,17.2229]
[1646542454368,114.5,88.339,88.281,17.2229]
[1646542454961,114.5,88.337,88.281,17.2229]
[1646542457861,120.16,88.337,88.281,17.2229]
[1646542459163,5.66,88.337,88.281,17.2229]
[1646542459362,23.8678,88.339,88.281,17.2229]
[1646542459763,23.8678,88.339,88.282,5.66]
[1646542459962,23.8678,88.339,88.281,17.2229]
[1646542465267,1.53872956,88.358,88.281,17.2229]
[1646542465468,24.6792,88.357,88.29,16.9889]
[1646542465671,24.6792,88.357,88.291,22.7843]
[1646542465868,24.6792,88.357,88.292,50.79971801]
[1646542468670,26.21792956,88.357,88.292,50.79971801]
[1646542470494,1.53872956,88.351,88.292,50.79971801]
[1646542470892,26.21792956,88.357,88.292,50.79971801]
[1646542471294,14.78200189,88.355,88.292,50.79971801]
[1646542471697,1.53872956,88.354,88.292,50.79971801]
[1646542472094,1.53872956,88.353,88.292,50.79971801]
[1646542472295,1.53872956,88.354,88.292,50.79971801]
[1646542472495,16.32073145,88.355,88.292,50.79971801]
[1646542472697,1.53872956,88.345,88.292,50.79971801]
[1646542472895,1.53872956,88.346,88.292,50.79971801]
[1646542473298,1.53872956,88.345,88.292,50.79971801]
[1646542473598,1.53872956,88.346,88.292,50.79971801]
[1646542473800,1.53872956,88.346,88.3,16.986]
[1646542473999,24.6792,88.357,88.3,16.986]
[1646542474800,1.53872956,88.361,88.3,16.986]
[1646542475001,1.53872956,88.361,88.301,24.0523]
[1646542475202,1.53872956,88.355,88.301,24.0523]
[1646542475402,47.07849567,88.354,88.301,24.0523]
[1646542476303,1.53872956,88.356,88.301,24.0523]
[1646542476503,1.53872956,88.355,88.301,24.0523]
[1646542477305,41.60930225,88.354,88.301,24.0523]
[1646542477507,43.14803181,88.354,88.301,24.0523]
[1646542477705,41.60930225,88.354,88.301,24.0523]
[1646542478705,1.53872956,88.353,88.301,24.0523]
[1646542479307,1.53872956,88.355,88.301,24.0523]
[1646542480708,1.53872956,88.361,88.301,24.0523]
[1646542480909,25.61092956,88.366,88.301,24.0523]
[1646542481708,1.53872956,88.363,88.301,24.0523]
[1646542481917,10.53872956,88.363,88.301,24.0523]
[1646542482116,1.53872956,88.357,88.301,24.0523]
[1646542483109,1.53872956,88.356,88.301,24.0523]
[1646542483510,1.53872956,88.357,88.301,24.0523]
[1646542483910,1.53872956,88.355,88.28,16.9903]
[1646542484110,1.53872956,88.354,88.282,24.5635]
[1646542484309,1.53872956,88.354,88.282,27.39963526]
[1646542484710,1.53872956,88.354,88.283,2.83613526]
[1646542484909,1.53872956,88.354,88.284,53.26653435]
[1646542485309,1.53872956,88.354,88.285,2.83613526]
[1646542485510,1.53872956,88.355,88.285,2.83613526]
[1646542485709,1.53872956,88.353,88.285,2.83613526]
[1646542485910,1.53872956,88.354,88.285,2.83613526]
[1646542486110,114.5,88.349,88.262,22.83229693]
[1646542486411,1.53872956,88.344,88.266,24.9301]
[1646542486610,1.53872956,88.343,88.266,24.9301]
[1646542487010,7.70189129,88.342,88.282,48.61249724]
[1646542487213,9.24062085,88.342,88.282,48.61249724]
[1646542487411,7.70189129,88.342,88.282,48.61249724]
[1646542487609,9.24062085,88.342,88.282,48.61249724]
[1646542488410,7.70189129,88.342,88.282,48.61249724]
[1646542488611,9.24062085,88.342,88.282,48.61249724]
[1646542488812,7.70189129,88.342,88.282,48.61249724]
[1646542489819,1.53872956,88.343,88.282,48.61249724]
[1646542490216,1.53872956,88.344,88.282,48.61249724]
[1646542490414,1.53872956,88.343,88.282,48.61249724]
[1646542490615,1.53872956,88.342,88.282,48.61249724]
[1646542490815,68.67,88.34,88.282,48.61249724]
[1646542491215,55.59760086,88.341,88.282,48.61249724]
[1646542492420,57.13633042,88.341,88.282,48.61249724]
[1646542492618,57.13633042,88.341,88.283,5.66]
[1646542493017,55.59760086,88.341,88.283,5.66]
[1646542493420,57.13633042,88.341,88.283,5.66]
[1646542493920,55.59760086,88.341,88.283,5.66]
[1646542494322,1.53872956,88.343,88.283,5.66]
[1646542494523,1.53872956,88.343,88.284,24.7161]
[1646542494724,1.53872956,88.343,88.285,5.66]
[1646542495422,55.75796426,88.344,88.285,5.66]
[1646542495722,1.53872956,88.343,88.285,5.66]
[1646542497224,24.6218,88.348,88.285,5.66]
[1646542497225,1.53872956,88.341,88.285,5.66]
[1646542497627,1.53872956,88.343,88.285,5.66]
[1646542499729,1.53872956,88.341,88.285,5.66]
[1646542500435,3.67755326,88.34,88.285,5.66]
[1646542503045,5.21628282,88.34,88.285,5.66]
[1646542504349,3.67755326,88.34,88.285,5.66]
[1646542504848,5.21628282,88.34,88.285,5.66]
[1646542505049,3.67755326,88.34,88.285,5.66]
[1646542505849,5.21628282,88.34,88.285,5.66]
[1646542506149,3.67755326,88.34,88.285,5.66]
[1646542507852,1.53872956,88.342,88.284,24.7161]
[1646542508254,1.53872956,88.343,88.284,24.7161]
[1646542508652,1.53872956,88.346,88.285,5.661]
[1646542508853,1.53872956,88.347,88.285,5.661]
[1646542509253,1.53872956,88.346,88.285,5.661]
[1646542510459,1.53872956,88.345,88.285,5.661]
[1646542511259,1.53872956,88.344,88.285,5.661]
[1646542511660,1.53872956,88.341,88.285,5.661]
[1646542513364,1.53872956,88.342,88.285,5.661]
[1646542513561,1.53872956,88.34,88.285,5.661]
[1646542514161,14.73411674,88.34,88.285,5.661]
[1646542514560,1.53872956,88.34,88.285,5.661]
[1646542515364,1.53872956,88.341,88.285,5.661]
[1646542515763,1.53872956,88.339,88.285,5.661]
[1646542515964,1.53872956,88.338,88.285,5.661]
[1646542516162,24.6218,88.348,88.286,45.56818982]
[1646542516163,1.53872956,88.341,88.286,45.56818982]
[1646542516364,1.53872956,88.346,88.287,5.66]
[1646542516664,1.53872956,88.353,88.287,5.66]
[1646542516865,1.53872956,88.351,88.287,28.49229693]
[1646542517264,1.53872956,88.349,88.287,28.49229693]
[1646542517465,1.53872956,88.348,88.287,28.49229693]
[1646542517965,15.71936708,88.345,88.287,5.66]
[1646542518164,17.25809664,88.345,88.287,5.66]
[1646542518372,1.53872956,88.344,88.287,5.66]
[1646542519065,1.53872956,88.348,88.287,5.66]
[1646542519964,4.29337496,88.348,88.287,5.66]
[1646542520168,1.53872956,88.347,88.287,5.66]
[1646542521165,1.53872956,88.346,88.287,5.66]
[1646542521368,114.5,88.346,88.287,5.66]
[1646542522367,114.5,88.346,88.272,11.82446707]
[1646542522368,114.5,88.342,88.272,11.82446707]
[1646542522569,68.67,88.327,88.258,22.83229693]
[1646542522766,1.53872956,88.307,88.246,23.115]
[1646542522968,114.5,88.306,88.246,23.115]
[1646542523167,1.53872956,88.298,88.246,23.115]
[1646542523367,114.5,88.296,88.246,23.115]
[1646542523666,1.53872956,88.303,88.246,23.115]
[1646542524067,1.53872956,88.299,88.246,23.115]
[1646542524668,1.53872956,88.298,88.246,23.115]
[1646542524869,1.53872956,88.296,88.246,23.115]
[1646542525068,1.53872956,88.296,88.221,24.9989]
[1646542525069,68.67,88.296,88.232,24.421]
[1646542525268,114.5,88.289,88.232,24.421]
[1646542525467,1.53872956,88.285,88.221,24.9989]
[1646542525668,1.53872956,88.278,88.221,24.9989]
[1646542525868,114.5,88.276,88.221,24.9989]
[1646542526068,114.5,88.276,88.222,64.81883192]
[1646542527071,5.665,88.275,88.222,64.81883192]
[1646542528574,5.665,88.276,88.222,64.81883192]
[1646542529673,5.665,88.296,88.222,64.81883192]
[1646542529975,29.4488,88.299,88.222,64.81883192]
[1646542530374,29.4488,88.299,88.222,81.61843192]
[1646542530574,114.5,88.298,88.223,22.5098]
[1646542530776,23.7838,88.299,88.223,22.5098]
[1646542531178,23.7838,88.299,88.23,16.9999]
[1646542531577,114.5,88.298,88.23,16.9999]
[1646542531977,23.7838,88.299,88.23,16.9999]
[1646542532978,114.5,88.298,88.23,16.9999]
[1646542533677,114.5,88.298,88.223,22.5098]
[1646542534979,23.7838,88.299,88.223,22.5098]
[1646542536379,114.5,88.298,88.223,22.5098]
[1646542536780,23.7838,88.299,88.223,22.5098]
[1646542537180,29.4488,88.299,88.223,22.5098]
[1646542537881,29.4488,88.299,88.23,16.9998]
[1646542542085,23.7838,88.299,88.23,16.9998]
[1646542543386,1.53872956,88.305,88.23,16.9998]
[1646542543585,1.53872956,88.306,88.231,2.83613526]
[1646542543784,1.53872956,88.306,88.231,117.33613526]